Cogmind - Beta 9.4 @@@ ROGUE MODE // 2020.03.14 @ 18:49:54 Player: Nalzok Result: Destroyed by as-98405 with Assembled Blade Performance ------------- Evolutions (0) 0 Regions Visited (4) 800 Robots Destroyed (19) 95 Value Destroyed (42) 42 Prototype IDs (23) 460 Alien Tech Used (0) 0 Bonus (300) 300 TOTAL SCORE: 1697 Bonus ------- Aligned with FarCom 300 Cogmind --------- Core Integrity 0/250 Matter 189/300 Energy 100/100 System Corruption 5% Temperature Cool (0) Movement Rolling (110) Ox1 Location -9/Mines Parts ------- > --- POWER (1) -------- (None) > --- PROPULSION (2) --- Compact Wheel > --- UTILITY (2) ------ High-capacity Storage Unit > --- WEAPON (2) ------- (None) > --- INVENTORY (12) --- Light Ion Engine Flying Fortress v7 High-capacity Storage Unit High-capacity Storage Unit Experimental Sensor Array Tractor Beam Peak State ------------ > --- POWER ------------ Ion Engine > --- PROPULSION ------- Compact Wheel Compact Wheel > --- UTILITY ---------- High-capacity Storage Unit Makeshift Armor Plating > --- WEAPON ----------- Light Assault Rifle Rocket Launcher > --- INVENTORY -------- Light Ion Engine Compact Wheel Flying Fortress v7 High-capacity Storage Unit High-capacity Storage Unit Experimental Sensor Array Tractor Beam Light Assault Rifle Battle Cannon [Rating: 15] Favorites ----------- Power Ion Engine Engine Ion Engine Propulsion Compact Wheel Leg Aluminum Leg Wheel Compact Wheel Utility Core Shielding Device Experimental Sensor Array Storage Small Storage Unit Protection Core Shielding Weapon Assault Rifle Energy Gun Medium Laser Ballistic Gun Assault Rifle Ballistic Cannon Battle Cannon Launcher Rocket Launcher Build | -11 -10 -10 -10 -9 ------- Run | Scr Mat Min Exi Min Slots Evolved . | . . . . . Power . | . . . . . Propulsion . | . . . . . Utility . | . . . . . Weapon . | . . . . . Parts Attached 16 | . 1 5 1 9 Power . | . . . . . Engine . | . . . . . Core . | . . . . . Reactor . | . . . . . Propulsion 3 | . . 2 . 1 Treads . | . . . . . Leg . | . . . . . Wheel 3 | . . 2 . 1 Hover . | . . . . . Flight . | . . . . . Utility 6 | . 1 3 1 1 Device 1 | . . 1 . . Storage 2 | . . 1 1 . Processor . | . . . . . Hackware . | . . . . . Protection 3 | . 1 1 . 1 Artifact . | . . . . . Weapon 7 | . . . . 7 Energy Gun . | . . . . . Energy Cannon . | . . . . . Ballistic Gun 5 | . . . . 5 Ballistic Cannon 1 | . . . . 1 Launcher 1 | . . . . 1 Special Weapon . | . . . . . Impact Weapon . | . . . . . Slashing Weapon . | . . . . . Piercing Weapon . | . . . . . Special Melee Weapon . | . . . . . Unidentified Prototypes 1 | . . 1 . . Parts Lost 7 | . . . . 7 Power 1 | . . . . 1 Propulsion 2 | . . . . 2 Utility 1 | . . . . 1 Weapon 3 | . . . . 3 Highest Loss Streak 7 | . . . . 7 Average Slot Usage (%) 97 | . 90 99 100 93 Engine 13 | . 14 14 14 12 Leg 4 | . 28 4 . . Wheel 23 | . . 23 28 25 Storage 14 | . 14 14 14 14 Protection 12 | . 4 13 14 12 Energy Gun 11 | . 14 14 14 1 Ballistic Gun 16 | . 14 14 14 23 Naked Turns . | . . . . . Heaviest Build 46 | 13 14 26 42 46 Greatest Support 32 | 20 20 32 32 32 Greatest Overweight (x) 1 | . . 1 1 1 Average Overweight (x) . | . . . . 1 Largest Inventory Capacity 12 | 6 6 10 12 12 Average Capacity 8 | 6 6 6 10 12 Most Carried 12 | 5 2 7 12 12 Average Carried 7 | 3 2 5 8 11 Final Capacity 12 | 6 6 10 12 12 Final Carried 12 | 2 2 7 12 9 Class Distribution -------------------- 85% | Mutant 14% | Scavenger-Mutant Dominant Class ---------------- Mutant | -10/Materials Mutant | -10/Mines Mutant | -10/Exiles Scavenger-Mutant | -9/Mines Resources | -11 -10 -10 -10 -9 ----------- Run | Scr Mat Min Exi Min Matter Collected 371 | 174 . 110 . 87 Remotely . | . . . . . Salvage Created 254 | . . 136 . 118 Parts 13 | . . 5 . 8 Haulers Intercepted . | . . . . . Recyclers Shooed . | . . . . . Parts Field Recycled . | . . . . . Retrieved Matter . | . . . . . Parts Self-Destructed . | . . . . . Prevented . | . . . . . Kills | -11 -10 -10 -10 -9 ------- Run | Scr Mat Min Exi Min Combat Hostiles Destroyed 17 | . . . . 17 Guns 3 | . . . . 3 Cannons 3 | . . . . 3 AOE 11 | . . . . 11 Classes Destroyed 3 | . . 1 . 2 Recycler 2 | . . 2 . . Swarmer 3 | . . . . 3 Assembled 14 | . . . . 14 Best Kill Streak 14 | . . 2 . 14 Combat Bots Only 14 | . . . . 14 Max Kills in Single Turn 4 | . . 1 . 4 Gunslinging . | . . . . . Exploded 4 | . . . . 4 Melee . | . . . . . Uniques/NPCs Destroyed . | . . . . . Combat | -11 -10 -10 -10 -9 -------- Run | Scr Mat Min Exi Min Damage Taken 1088 | . 20 . . 1068 Core 279 | . 16 . . 263 Absorbed by Shields . | . . . . . Core Remaining (%) 100 | 100 . . . . Volleys Fired 30 | . 1 7 . 22 Largest 2 | . 2 2 . 2 Hottest 70 | . 70 70 . 70 Shots Fired 56 | . 2 14 . 40 Gun 43 | . 2 14 . 27 Cannon 8 | . . . . 8 Launcher 5 | . . . . 5 Special . | . . . . . Kinetic 38 | . 1 7 . 30 Thermal 13 | . 1 7 . 5 Explosive 5 | . . . . 5 Electromagnetic . | . . . . . Robot Hit Streak 4 | . 1 4 . 3 Robot Miss Streak 4 | . 1 3 . 4 Penetration Max . | . . . . . Secondary Targets . | . . . . . Shots Hit Robots 28 | . 1 8 . 19 Core Hits 31 | . . 5 . 26 Critical Hits . | . . . . . Critical Kills . | . . . . . Critical Parts Destroyed . | . . . . . Melee Attacks . | . . . . . Impact . | . . . . . Slashing . | . . . . . Piercing . | . . . . . Sneak Attacks . | . . . . . Combat Hostiles . | . . . . . Follow-up Attacks . | . . . . . Damage Inflicted 1118 | . 12 85 . 1021 Guns 230 | . 12 85 . 133 Cannons 103 | . . . . 103 Explosions 785 | . . . . 785 Melee . | . . . . . Ramming . | . . . . . Kinetic 222 | . . 24 . 198 Thermal 111 | . 12 61 . 38 Explosive 785 | . . . . 785 Electromagnetic . | . . . . . Impact . | . . . . . Slashing . | . . . . . Piercing . | . . . . . Highest Corruption 5 | . . . . 5 Average Corruption 3 | . . . . 3 Corruption Purged . | . . . . . Overload Shots . | . . . . . Overflow Damage 56 | . . . . 56 Projectiles . | . . . . . Explosions 56 | . . . . 56 Melee . | . . . . . Knockbacks 1 | . . . . 1 Impact . | . . . . . Kinetic 1 | . . . . 1 Secondary . | . . . . . Self-Inflicted Damage 155 | . . . . 155 Shots 4 | . . . . 4 Rammed . | . . . . . Targets Rammed . | . . . . . Kicked . | . . . . . Crushed . | . . . . . Highest Temperature 98 | . 9 63 . 98 Average Temperature 35 | . 6 32 . 37 Received Heat Transfer 172 | . 12 . . 160 Siege Activations . | . . . . . Robots Corrupted . | . . . . . Combat Hostiles . | . . . . . Parts Fried . | . . . . . Impact Corruptions . | . . . . . Robots Melted . | . . . . . Combat Hostiles . | . . . . . Parts Melted . | . . . . . Heat Transferred 333 | . 37 185 . 111 Parts Sabotaged . | . . . . . Parts Stolen . | . . . . . Parts Stripped . | . . . . . Power Chain Reactions . | . . . . . Missiles Intercepted . | . . . . . Alert | -11 -10 -10 -10 -9 ------- Run | Scr Mat Min Exi Min Peak Influence 130 | . 20 17 . 130 Average Influence 36 | . 8 14 . 87 Maximum Alert Level . | . . . . . Low Security (%) 100 | 100 100 100 . 100 Level 1 . | . . . . . Level 2 . | . . . . . Level 3 . | . . . . . Level 4 . | . . . . . Level 5 . | . . . . . High Security . | . . . . . Max Security . | . . . . . Squads Dispatched 1 | . 1 . . . Investigation . | . . . . . Extermination . | . . . . . Reinforcement 1 | . 1 . . . Assault . | . . . . . Garrison . | . . . . . Intercept . | . . . . . Construction Impeded . | . . . . . Haulers Reinforced . | . . . . . Stealth | -11 -10 -10 -10 -9 --------- Run | Scr Mat Min Exi Min Distress Signals . | . . . . . Communications Jammed . | . . . . . Distress Signals . | . . . . . Times Spotted 27 | . 3 . . 24 Peak Tracking Total 15 | . 4 . . 15 Tactical Retreats 1 | . . . . 1 Traps | -11 -10 -10 -10 -9 ------- Run | Scr Mat Min Exi Min Traps Triggered . | . . . . . Indirectly . | . . . . . Trap Hack Attempts . | . . . . . Triggered . | . . . . . Disarmed . | . . . . . Reprogrammed . | . . . . . Reused . | . . . . . Traps Extracted . | . . . . . Installed . | . . . . . Triggered . | . . . . . Machines | -11 -10 -10 -10 -9 ---------- Run | Scr Mat Min Exi Min Machines Disabled . | . . . . . Max in Single Turn . | . . . . . Machines Sabotaged . | . . . . . Garrisons Compromised . | . . . . . Overloaded Fab Kills . | . . . . . Fab Network Shutdowns . | . . . . . Hacking | -11 -10 -10 -10 -9 --------- Run | Scr Mat Min Exi Min Machines Accessed 4 | . 1 1 2 . Terminals 2 | . 1 1 . . Fabricators . | . . . . . Repair Stations . | . . . . . Recycling Units . | . . . . . Scanalyzers . | . . . . . Garrison Access . | . . . . . Total Hacks 7 | . 1 4 2 . Successful 4 | . 1 1 2 . Failed 3 | . . 3 . . Catastrophic 1 | . . 1 . . Database Lockouts . | . . . . . Manual 6 | . 1 4 1 . Terminals 5 | . 1 4 . . Fabricators . | . . . . . Repair Stations . | . . . . . Recycling Units . | . . . . . Scanalyzers . | . . . . . Garrison Access . | . . . . . Terminal Hacks 3 | . . 1 2 . Record 1 | . . . 1 . Branch Access Points 1 | . . 1 . . EX-Prototype ID Bank 1 | . . . 1 . Fabricator Hacks . | . . . . . Repair Station Hacks . | . . . . . Recycling Unit Hacks . | . . . . . Scanalyzer . | . . . . . Garrison Access Hacks . | . . . . . Unauthorized Hacks 2 | . 2 . . . Terminals 1 | . 1 . . . Botnet 1 | . 1 . . . Fabricators . | . . . . . Repair Stations . | . . . . . Recycling Units . | . . . . . Scanalyzers . | . . . . . Garrison Access . | . . . . . Data Cores Recovered . | . . . . . Used . | . . . . . Hacking Detections 2 | . 1 1 . . Full Trace Events . | . . . . . Feedback Events . | . . . . . Feedback Blocked . | . . . . . Robot Schematics Acquired . | . . . . . Robots Built . | . . . . . Matter . | . . . . . Time . | . . . . . Total Robot Build Rating . | . . . . . Part Schematics Acquired . | . . . . . Parts Built . | . . . . . Matter . | . . . . . Time . | . . . . . Total Part Build Rating . | . . . . . Parts Repaired . | . . . . . Time . | . . . . . Parts Recycled . | . . . . . Recycled Matter . | . . . . . Retrieved Matter . | . . . . . Retrieved Components . | . . . . . Parts Scanalyzed . | . . . . . Part Schematics Acquired . | . . . . . Parts Damaged . | . . . . . Bothacking | -11 -10 -10 -10 -9 ------------ Run | Scr Mat Min Exi Min Used RIF Installer . | . . . . . Robots Hacked . | . . . . . Non-combat . | . . . . . Combat . | . . . . . Robot Hacks Applied . | . . . . . Relay Couplers Released . | . . . . . Robots Rewired . | . . . . . Allies Hacked . | . . . . . Hacks Repelled . | . . . . . Allies | -11 -10 -10 -10 -9 -------- Run | Scr Mat Min Exi Min Total Allies . | . . . . . Largest Group . | . . . . . Highest-Rated Group . | . . . . . Highest-Rated Ally . | . . . . . Total Orders . | . . . . . Ally Attacks . | . . . . . Total Damage . | . . . . . Kills . | . . . . . Allies Corrupted . | . . . . . Allies Melted . | . . . . . Intel | -11 -10 -10 -10 -9 ------- Run | Scr Mat Min Exi Min Robot Analysis Total . | . . . . . Derelict Logs Recovered 1 | . . 1 . . Drone Launches . | . . . . . Drone Recoveries . | . . . . . Exploration | -11 -10 -10 -10 -9 ------------- Run | Scr Mat Min Exi Min Turns Passed 1076 | 3 87 447 298 241 Spaces Moved 914 | 1 69 407 290 147 Core . | . . . . . Treads . | . . . . . Legs 105 | 1 69 35 . . Wheels 809 | . . 372 290 147 Hover . | . . . . . Flight . | . . . . . Fastest Speed 100 | 120 120 100 100 110 Average Speed 104 | 120 120 101 101 110 Slowest Speed 150 | 120 120 150 110 110 Overloaded Moves . | . . . . . Propulsion Burnouts . | . . . . . Robots Hopped . | . . . . . Cave-ins Triggered . | . . . . . Exploration Rate (%) 44 | 1 33 79 65 44 Regions Visited 4 Branch Regions 3 Pre-discovered Areas 2 | . . 1 1 . Known Exits Taken . | . . . . . Unknown Exits Taken 4 | 1 1 1 1 . Scrap Searched 3 | . . 2 . 1 Spaces Dug . | . . . . . Terrain Destroyed 46 | . . . . 46 Melee . | . . . . . Projectile 1 | . . . . 1 AOE 45 | . . . . 45 Actions | -11 -10 -10 -10 -9 --------- Run | Scr Mat Min Exi Min Total 987 | 4 70 425 297 191 Wait 4 | . . . . 4 Move 910 | . 68 406 289 147 Hop . | . . . . . Pick Up 9 | . . 3 4 2 Fast Attach 6 | . 1 3 . 2 Attach 3 | . . . . 3 Detach 2 | . . 2 . . Swap 7 | . . 2 1 4 Drop 16 | 4 . 2 3 7 Fire 30 | . 1 7 . 22 Melee . | . . . . . Ram . | . . . . . Kick . | . . . . . Crush . | . . . . . Escape Stasis . | . . . . . Rewire . | . . . . . Trap . | . . . . . Miscellaneous . | . . . . . Route ------- -11/Scrapyard -10/Materials -10/Mines (discovered 2 exits: [*Mat] / *Exi) -10/Exiles -9/Mines History --------- Turn | Location | Event 4 | -11/Scrapyard | Discovered new exit (range 0) 4 | -11/Scrapyard | Entered Materials 74 | -10/Materials | Discovered new exit (range 14) 91 | -10/Materials | Entered Mines 113 | -10/Mines | Found a damaged Exp. Sensor Array with a note attached 120 | -10/Mines | Found Prototype Device 120 | -10/Mines | Identified Exp. Sensor Array 157 | -10/Mines | Learned location of Storage (-7) 158 | -10/Mines | Discovered new exit (range 7) 226 | -10/Mines | Learned 2 Materials zone layouts 316 | -10/Mines | Build established: Mutant 412 | -10/Mines | Deemed a non-threat by the Exiles lab entrance 412 | -10/Mines | Discovered new exit (range 5) 538 | -10/Mines | Entered Exiles 562 | -10/Exiles | Met 8R-AWN 580 | -10/Exiles | Met EX-HEX 607 | -10/Exiles | Met EX-BIN 627 | -10/Exiles | Aligned with FarCom system 628 | -10/Exiles | Given EX-Vault access code 653 | -10/Exiles | Opened EX-Vault 667 | -10/Exiles | Found Flying Fortress v7 696 | -10/Exiles | Exiles lab attacked by MAIN.C 770 | -10/Exiles | Learned location of Zion (-7) 828 | -10/Exiles | Discovered new exit (range 10) 836 | -10/Exiles | Left Exiles lab with Flying Fortress v7 836 | -10/Exiles | Entered Mines 960 | -9/Mines | Received a Rocket Launcher from a helpful Derelict 1013 | -9/Mines | A weapon hastily lodged in a ceiling crevice suddenly fell to the ground 1021 | -9/Mines | Assembled infested the area 1046 | -9/Mines | Core integrity fell below 50% 1061 | -9/Mines | Core integrity fell below 20% 1077 | -9/Mines | Destroyed by as-98405 with Assembled Blade Last Messages --------------- 01047_ as-37794 destroyed. 01047_ Destroyed Asb. Hover Unit. 01048_ The unstable cave ceiling collapses. 01050_ Com. Wheel destroyed. 01050_ Knocked back. 01051_ The unstable cave ceiling collapses. 01052_ Rocket Launcher destroyed. 01052_ Lgt. Assault Rifle destroyed. 01055_ The unstable cave ceiling collapses. 01055_ as-35673 destroyed. 01056_ Knocked back. 01058_ as-25531 destroyed. 01059_ Mak. Armor Plating destroyed. 01059_ System corrupted by crushing effect (+4). 01065_ as-79576 knocked back. 01066_ as-70702 destroyed. 01068_ as-04346 destroyed. 01070_ as-49004 destroyed. 01071_ Lgt. Assault Rifle destroyed. 01074_ Battle Cannon severed. Map ----- +----------------------------------------------------+ | ??????????????????????????????????# | | ??????????????????????????????????# | | ??????????????????????????????????# | | ??????????????????????????????????# | | ??????????????????????????????????# | | ??????????????????????????????????# | | ??????????????????????????????????# | | ??????????????????????????????????# | | ????????????????????????????????### | | ????????????????????????????????# | | ?????????? ?????###?????##??????# | | ??????????? ???# ###??## #??????# ### | | ??????????? ?## #?## #??????# #?? | | ??????????? # ### ???????# #?? | | ???????????? # #???????# #?? | | ???????????? #???????# #?? | | ???????????? # *% #???????# #?? | | ????????????? a = ##??????# #?? | | ????????????? ##????## #?? | | ?????????????# #???## ##? | | ????????????## % ##?## #? | | ????????????## % ### #? | | ????????????# a [ ## | | ???????????## % ### # | | ???????????# a % ##?# | | ???????????#@ #??# | | ???????????# # ### | | ???????????#### #?## | | ??????????????#####??# ## | | ?????????????????????# ##?## | | ?????????????????????# ##???? | | ?????????????????????# ##????? | | ?????????????????????## ###?????? | | ??????????????????????## ###???????? | | ???????????????????????###??????????? | | ????????????????????????????????????? | | | | | | | | | | | | | | | | | | | | | | | | | | | | | +----------------------------------------------------+ Best States ------------- Heat Dissipation 25 Energy Generation 10 Energy Capacity 250 Matter Stores 300 Matter Capacity 300 Sight Range 16 Terrain Scan Density 10 Armor Coverage 100 Core Shielding 20 Evasion (%) 40 Item Schematics ----------------- None Robot Schematics ------------------ None Fabricated ------------ Nothing Alien Tech Used ----------------- None Achievements -------------- None Challenges ------------ None Game ------ Seed BottomlessSpreadBeam Manual? 0 Play Time 00:11:07 Cumulative 221.3 hours Start 2020.03.14 @ 18:41:27 End 2020.03.14 @ 18:49:54 Sessions 1 Manual Loads 0 Difficulty Rogue Special Mode None Game No. 352 Rogue 351 Adventurer 0 Explorer 1 Win Type - Total 1 Types 1/0/0/0/0/0/0 Lore% 62 Gallery% 77 Achievement% 50 Wizard Run 0 Options --------- ASCII 0 Keyboard 1 Movement Vi Keybinds 0 Fullscreen 1 Font 14/Cog Map View 72x52 Tactical HUD 1 Map Filters NONE Filters LOW_CONTRAST(13,24,33) Steam 0 RUN: 9d075cb2-36df-40ed-b72a-5b36f97aa38a